fUSD/lending_fUSD_20260316
["ID","MTS","AMOUNT","RATE_DAILY","PERIOD"]
[408449781,1773652240579,-2000.0,0.000197,2]
[408449782,1773652240588,-502.0,0.00019726,2]
[408449783,1773652240598,-1200.25567715,0.00019734,2]
[408449784,1773652240608,-10002.93,0.00019753,2]
[408449785,1773652240617,-34.43425766,0.00019781,7]
[408449786,1773652240627,-502.0,0.00019781,2]
[408449787,1773652240636,-1200.25567715,0.00019789,2]
[408449788,1773652240647,-509.96034624,0.00019799,2]
[408449789,1773652240657,-2453.89642655,0.000198,2]
[408449790,1773652240667,-1004.48695,0.000198,2]
[408449791,1773652240676,-1004.48696,0.000198,2]
[408449792,1773652240686,-574.0,0.00019828,2]
[408449793,1773652240696,-500.0,0.00019836,7]
[408449794,1773652240706,-502.0,0.00019836,2]
[408449795,1773652240717,-1200.25567715,0.00019845,2]
[408449796,1773652240729,-2756.914,0.00019857,2]
[408449797,1773652240738,-174.56,0.00019857,2]
[408449798,1773652240748,-574.0,0.00019858,2]
[408449799,1773652240758,-329.87974126,0.0001989,7]
[408449800,1773652240767,-502.0,0.0001989,2]
[408449801,1773652240776,-500.0,0.00019897,2]
[408449802,1773652240785,-500.0,0.00019898,2]
[408449803,1773652240795,-500.0,0.00019898,2]
[408449804,1773652240804,-154.11039231,0.000199,6]
[408449805,1773652240813,-160.914034,0.000199,6]
[408449806,1773652240822,-5000.0,0.000199,2]
[408449807,1773652240831,-308.7218,0.000199,2]
[408449808,1773652240841,-1200.25567715,0.000199,2]
[408449809,1773652240850,-1000.0,0.00019921,2]
[408449810,1773652240860,-785.3465003,0.00019921,2]
[408449811,1773652240869,-317.49,0.00019944,2]
[408449812,1773652240878,-502.0,0.00019945,2]
[408449813,1773652240887,-501.85682544,0.00019973,2]
[408449814,1773652240897,-500.0,0.00019973,2]
[408449815,1773652240907,-504.23644602,0.00019973,2]
[408449816,1773652240917,-500.0,0.00019973,2]
[408449817,1773652240926,-500.0,0.00019973,2]
[408449818,1773652240936,-501.83165766,0.00019973,2]
[408449819,1773652240946,-409.01152396,0.0001998,2]
[408449820,1773652240957,-250.0,0.0001998,2]
[408449821,1773652240966,-500.0,0.00019987,2]
[408449822,1773652240978,-952.65,0.00019987,2]
[408449823,1773652240988,-500.0,0.00019987,2]
[408449824,1773652240998,-556.41101138,0.00019987,2]
[408449825,1773652241008,-532.52044599,0.00019987,2]
[408449826,1773652241018,-150.88,0.00019989,2]
[408449827,1773652241027,-449.29982481,0.0001999,2]
[408449828,1773652241038,-449.29982481,0.0001999,2]
[408449829,1773652241048,-449.29982481,0.0001999,2]
[408449830,1773652241057,-150.88,0.0001999,2]
[408449831,1773652241066,-150.88,0.0001999,2]
[408449832,1773652241075,-150.88,0.0001999,2]
[408449833,1773652241084,-150.88,0.0001999,2]
[408449834,1773652241094,-151.0,0.00019997,2]
[408449835,1773652241104,-151.0,0.00019997,2]
[408449836,1773652241114,-276.16946249,0.00019998,2]
[408449837,1773652241123,-584.76511504,0.00019998,2]
[408449838,1773652241133,-179.35229117,0.00019998,2]
[408449839,1773652241142,-500.0,0.00019998,2]
[408449840,1773652241151,-606.15823702,0.00019998,2]
[408449841,1773652241160,-500.0,0.00019998,2]
[408449842,1773652241169,-309.40321204,0.00019999,2]
[408449843,1773652241178,-690.01041515,0.00019999,2]
[408449844,1773652241188,-350.67723425,0.00019999,2]
[408449845,1773652241197,-1151.278279,0.00019999,5]
[408449846,1773652241207,-1151.278279,0.00019999,5]
[408449847,1773652241216,-155.0,0.00019999,2]
[408449848,1773652241225,-500.0,0.00019999,2]
[408449849,1773652241234,-500.0,0.00019999,2]
[408449850,1773652241243,-500.0,0.00019999,2]
[408449851,1773652241252,-443.07294302,0.00019999,2]
[408449852,1773652241261,-500.0,0.00019999,2]
[408449853,1773652241271,-952.65,0.00019999,2]
[408449854,1773652241280,-952.65,0.00019999,2]
[408449855,1773652241290,-952.65,0.00019999,2]
[408449856,1773652241300,-952.65,0.00019999,2]
[408449857,1773652241309,-952.65,0.00019999,2]
[408449858,1773652241318,-952.65,0.00019999,2]
[408449859,1773652241327,-952.65,0.00019999,2]
[408449860,1773652241336,-952.65,0.00019999,2]
[408449861,1773652241345,-952.65,0.00019999,2]
[408449862,1773652241354,-952.65,0.00019999,2]
[408449863,1773652241364,-952.65,0.00019999,2]
[408449864,1773652241374,-952.65,0.00019999,2]
[408449865,1773652241383,-952.65,0.00019999,2]
[408449866,1773652241392,-952.65,0.00019999,2]
[408449867,1773652241402,-952.65,0.00019999,2]
[408449868,1773652241412,-952.65,0.00019999,2]
[408449869,1773652241421,-952.65,0.00019999,2]
[408449870,1773652241431,-952.65,0.00019999,2]
[408449871,1773652241440,-952.65,0.00019999,2]
[408449872,1773652241450,-952.65,0.00019999,2]
[408449873,1773652241463,-952.65,0.00019999,2]
[408449874,1773652241473,-952.65,0.00019999,2]
[408449875,1773652241482,-952.79193391,0.00019999,2]
[408449876,1773652241491,-500.0,0.00019999,2]
[408449877,1773652241501,-500.0,0.00019999,2]
[408449878,1773652241512,-500.0,0.00019999,2]
[408449879,1773652241521,-500.0,0.00019999,2]
[408449880,1773652241532,-500.0,0.00019999,2]
[408449881,1773652241542,-500.0,0.00019999,2]
[408449882,1773652241551,-500.0,0.00019999,2]
[408449883,1773652241561,-500.0,0.00019999,2]
[408449884,1773652241571,-154.18560746,0.00019999,2]
[408449885,1773652241582,-500.0,0.00019999,2]
[408449886,1773652241592,-500.0,0.00019999,2]
[408449887,1773652241602,-526.51350935,0.00019999,2]
[408449888,1773652241613,-3632.95556,0.00019999,2]
[408449889,1773652241622,-3000.0,0.00019999,2]
[408449890,1773652241632,-216.57302616,0.00019999,2]
[408449891,1773652241643,-3620.0,0.0002,5]
[408449892,1773652241658,-2894.0,0.0002,5]
[408449893,1773652241667,-502.0,0.0002,2]
[408449894,1773652241677,-4608752.08681171,0.0002,2]
[408449895,1773652242874,-4630.71747022,0.0001964,2]
[408449896,1773652242979,-1372.28252978,0.0001964,2]
[408449897,1773652242989,-58455.00552425,0.0002,2]
[408449898,1773652243087,-2645.23935608,0.00019533,2]
[408449899,1773652243098,-599.48480446,0.0002,2]
[408449903,1773652245658,-2072.54365153,0.0002,2]
[408449904,1773652245713,-10689.45169862,0.0002,2]
[408449905,1773652245924,-11207.2682001,0.0002,2]
[408449906,1773652245977,-12903.96793164,0.0002,2]
[408449916,1773653230140,-177.45,0.00015039,2]
[408449917,1773653230163,-422.04316003,0.00016542,2]
[408449918,1773653349105,-250.0,0.00015,2]
[408449919,1773653349156,-479.8188674,0.000165,2]
[408449920,1773653358093,-1510.2511326,0.000165,2]
[408449921,1773653358115,-777.95683997,0.00016542,2]
[408449922,1773653358135,-300.0,0.00016542,2]
[408449923,1773653358155,-300.0,0.00016542,2]
[408449924,1773653358174,-498.01999003,0.00016543,2]
[408449930,1773653431925,-52.620519,0.00016543,2]
[408449931,1773653431935,-300.0,0.00016543,2]
[408449932,1773653431945,-250.0,0.00016543,2]
[408449933,1773653431954,-195.0,0.00016543,2]
[408449934,1773653431964,-300.0,0.00016599,2]
[408449935,1773653431974,-1200.0,0.00016599,2]
[408449936,1773653431984,-163.38399443,0.000166,2]
[408449937,1773653431994,-500.0,0.000166,2]
[408449938,1773653432004,-506.21838778,0.000166,2]
[408449939,1773653432014,-425.11630711,0.000166,2]
[408449940,1773653432024,-500.0,0.000166,2]
[408449941,1773653432034,-240.69785929,0.000166,2]
[408449942,1773653432043,-166.76,0.00016712,2]
[408449943,1773653432052,-300.0,0.00017,2]
[408449944,1773653432062,-411.437899,0.00018196,2]
[408449945,1773653432078,-2088.562101,0.00018196,2]
[408449946,1773653432087,-652.0,0.00018228,2]
[408449947,1773653432097,-500.0,0.00018384,2]
[408449948,1773653432106,-1168.96,0.00018635,2]
[408449949,1773653432117,-157.2,0.00018806,2]
[408449950,1773653432126,-823.88,0.00018813,2]
[408449951,1773653432135,-1500.0,0.00018825,2]
[408449952,1773653432144,-34695.6121,0.00018889,2]
[408449953,1773653432154,-152.0,0.0001892,3]
[408449954,1773653432168,-813.64,0.0001892,2]
[408449955,1773653432177,-13321.54818618,0.00018989,2]
[408449956,1773653432187,-500.0,0.00018999,2]
[408449957,1773653432196,-751.27,0.00019047,2]
[408449958,1773653432205,-8710.32761283,0.00019047,2]
[408449959,1773653432216,-467.1170963,0.00019047,2]
[408449960,1773653432227,-616.38608097,0.00019047,2]
[408449961,1773653432238,-206.1592099,0.00019047,2]
[408449962,1773653432247,-4636.76,0.00019047,2]
[408449963,1773653432256,-3590.18,0.00019047,2]
[408449964,1773653432266,-999.99,0.00019047,2]
[408449965,1773653432275,-38489.49,0.00019047,2]
[408449966,1773653432284,-150.99,0.00019047,2]
[408449967,1773653432293,-150.0,0.00019082,2]
[408449968,1773653432302,-662.86444,0.000192,2]
[408449969,1773653432311,-689.0147,0.00019239,2]
[408449970,1773653432321,-375.64,0.00019299,2]
[408449971,1773653432330,-419.0,0.0001942,2]
[408449972,1773653432340,-168.1,0.00019538,2]
[408449973,1773653432350,-10002.93,0.00019644,2]
[408449974,1773653432359,-153.92106085,0.0001967,2]
[408449975,1773653432369,-222.0,0.00019673,2]
[408449976,1773653432378,-222.0,0.00019704,2]
[408449977,1773653432388,-419.0,0.00019726,2]
[408449978,1773653432397,-150.0,0.00019726,7]
[408449979,1773653432407,-500.0,0.00019741,2]
[408449980,1773653432416,-500.0,0.00019741,2]
[408449981,1773653432426,-500.0,0.00019741,2]
[408449982,1773653432435,-500.0,0.00019741,2]
[408449983,1773653432444,-500.0,0.00019741,2]
[408449984,1773653432454,-500.0,0.00019741,2]
[408449985,1773653432463,-500.0,0.00019741,2]
[408449986,1773653432472,-500.0,0.00019741,2]
[408449987,1773653432483,-500.0,0.00019741,2]
[408449988,1773653432492,-500.0,0.00019741,2]
[408449989,1773653432502,-500.0,0.00019741,2]
[408449990,1773653432511,-500.0,0.00019741,2]
[408449991,1773653432521,-151.0,0.00019741,2]
[408449992,1773653432530,-234.76486537,0.00019741,2]
[408449993,1773653432540,-222.0,0.0001977,2]
[408449994,1773653432552,-419.0,0.00019781,2]
[408449995,1773653432562,-150.0,0.00019781,7]
[408449996,1773653432571,-5000.0,0.000198,2]
[408449997,1773653432580,-301.90431271,0.000198,2]
[408449998,1773653432589,-301.90431267,0.00019811,2]
[408449999,1773653432599,-301.90431267,0.00019822,2]
[408450000,1773653432608,-1085.25840832,0.00019829,2]
[408450001,1773653432619,-301.90431267,0.00019833,2]
[408450002,1773653432628,-419.0,0.00019836,2]
[408450003,1773653432638,-150.0,0.00019836,7]
[408450004,1773653432648,-419.0,0.00019838,2]
[408450005,1773653432657,-1085.25840832,0.00019843,2]
[408450006,1773653432666,-301.90431267,0.00019844,2]
[408450007,1773653432676,-2000.0,0.0001985,4]
[408450008,1773653432686,-301.90431267,0.00019856,2]
[408450009,1773653432696,-2398.976,0.00019857,2]
[408450010,1773653432706,-174.561,0.00019857,2]
[408450011,1773653432717,-1085.25840832,0.00019857,2]
[408450012,1773653432726,-301.90431267,0.00019867,2]
[408450013,1773653432735,-1085.25840832,0.00019871,2]
[408450014,1773653432745,-502.24595461,0.00019873,2]
[408450015,1773653432755,-301.90431267,0.00019878,2]
[408450016,1773653432765,-222.0,0.00019885,2]
[408450017,1773653432774,-1085.25840832,0.00019886,2]
[408450018,1773653432785,-301.90431267,0.00019889,2]
[408450019,1773653432795,-150.88,0.0001989,2]
[408450020,1773653432806,-150.88,0.0001989,2]
[408450021,1773653432816,-150.88,0.0001989,2]
[408450022,1773653432826,-150.88,0.0001989,2]
[408450023,1773653432835,-150.88,0.0001989,2]
[408450024,1773653432845,-419.0,0.0001989,2]
[408450025,1773653432855,-150.0,0.0001989,7]
[408450026,1773653432865,-500.0,0.00019899,2]
[408450027,1773653432875,-500.0,0.00019899,2]
[408450028,1773653432884,-674.79,0.00019899,2]
[408450029,1773653432894,-674.79,0.00019899,2]
[408450030,1773653432904,-674.79,0.00019899,2]
[408450031,1773653432918,-674.79,0.00019899,2]
[408450032,1773653432927,-500.0,0.00019899,2]
[408450033,1773653432940,-500.0,0.00019899,2]
[408450034,1773653432950,-500.0,0.00019899,2]
[408450035,1773653432961,-500.0,0.00019899,2]
[408450036,1773653432970,-500.0,0.00019899,2]
[408450037,1773653432981,-500.0,0.00019899,2]
[408450038,1773653432989,-515.64942736,0.00019899,2]
[408450039,1773653433000,-377.53591262,0.00019899,2]
[408450040,1773653433009,-500.0,0.00019899,2]
[408450041,1773653433018,-532.52044599,0.00019899,2]
[408450042,1773653433027,-503.96427404,0.00019899,2]
[408450043,1773653433037,-483.69,0.00019899,2]
[408450044,1773653433045,-500.0,0.00019899,2]
[408450045,1773653433055,-500.0,0.00019899,2]
[408450046,1773653433063,-500.0,0.00019899,2]
[408450047,1773653433072,-500.0,0.00019899,2]
[408450048,1773653433081,-500.0,0.00019899,2]
[408450049,1773653433090,-556.41101138,0.00019899,2]
[408450050,1773653433100,-500.0,0.00019899,2]
[408450051,1773653433109,-500.0,0.00019899,2]
[408450052,1773653433118,-500.0,0.00019899,2]
[408450053,1773653433127,-216.57302616,0.00019899,2]
[408450054,1773653433136,-500.0,0.00019899,2]
[408450055,1773653433145,-500.0,0.00019899,2]
[408450056,1773653433154,-500.0,0.00019899,2]
[408450057,1773653433164,-500.0,0.00019899,2]
[408450058,1773653433173,-505.49118115,0.00019899,2]
[408450059,1773653433182,-500.0,0.00019899,2]
[408450060,1773653433191,-274.31076592,0.00019899,2]
[408450061,1773653433201,-331.84747111,0.00019899,2]
[408450062,1773653433210,-584.76511504,0.00019899,2]
[408450063,1773653433219,-500.0,0.00019899,2]
[408450064,1773653433228,-415.35445014,0.00019899,2]
[408450065,1773653433238,-500.0,0.00019899,2]
[408450066,1773653433247,-500.0,0.00019899,2]
[408450067,1773653433256,-500.0,0.00019899,2]
[408450068,1773653433265,-26500.0607643,0.000199,2]
[408450069,1773653433277,-895.86861586,0.000199,2]
[408450070,1773653433288,-296.369996,0.000199,2]
[408450071,1773653433583,-1889.96224021,0.000199,2]
[408450073,1773653437957,-3353.78259443,0.000199,2]
[408450074,1773653437968,-7093.25126285,0.000199,2]
[408450075,1773653437979,-1437.67372447,0.000199,2]
[408450076,1773653438065,-696719.22061691,0.000199,2]
[408450077,1773653438120,-4897.49151961,0.000199,2]
[408450078,1773653438131,-36623.26650182,0.000199,2]
[408450100,1773653440188,-183596.11776354,0.000199,2]
[408450101,1773653440198,-18184.4901417,0.000199,3]
[408450102,1773653440207,-301.90431267,0.000199,2]
[408450103,1773653440216,-150.86579194,0.000199,2]
[408450104,1773653440226,-1085.25840832,0.000199,2]
[408450105,1773653440235,-308.7218,0.000199,2]
[408450106,1773653440244,-2208.02703944,0.000199,2]
[408450107,1773653440253,-150.0,0.000199,2]
[408450108,1773653440262,-10106.5028359,0.000199,2]
[408450109,1773653440271,-3624.0,0.000199,5]
[408450110,1773653440281,-2892.0,0.000199,5]
[408450111,1773653440290,-906.75,0.000199,2]
[408450112,1773653440299,-222.0,0.00019927,2]
[408450113,1773653440308,-222.0,0.00019928,2]
[408450114,1773653440317,-317.49,0.00019945,2]
[408450115,1773653440326,-419.0,0.00019945,2]
[408450116,1773653440335,-264.31399892,0.00019945,7]
[408450117,1773653440344,-500.0,0.00019973,2]
[408450118,1773653440354,-500.0,0.00019973,2]
[408450119,1773653440363,-603.31981501,0.00019973,2]
[408450120,1773653440372,-500.0,0.00019973,2]
[408450121,1773653440381,-500.0,0.00019973,2]
[408450122,1773653440391,-368.93202184,0.00019973,2]
[408450123,1773653440400,-500.0,0.00019973,2]
[408450124,1773653440410,-506.49172954,0.00019973,2]
[408450125,1773653440419,-336.85380746,0.00019973,2]
[408450126,1773653440428,-501.93995683,0.00019973,2]
[408450127,1773653440438,-526.19704835,0.00019973,2]
[408450128,1773653440447,-500.251219,0.00019973,2]
[408450129,1773653440457,-502.66188252,0.00019973,2]
[408450130,1773653440467,-263.93544588,0.00019973,2]
[408450131,1773653440475,-500.0,0.00019973,2]
[408450132,1773653440485,-500.0,0.00019973,2]
[408450133,1773653440494,-500.0,0.00019973,2]
[408450134,1773653440503,-500.42908469,0.00019973,2]
[408450135,1773653440513,-500.0,0.00019973,2]
[408450136,1773653440522,-500.0,0.00019973,2]
[408450137,1773653440532,-500.0,0.00019973,2]
[408450138,1773653440542,-250.0,0.00019973,2]
[408450139,1773653440552,-553.49386102,0.00019987,2]
[408450140,1773653440561,-500.0,0.00019987,2]
[408450141,1773653440571,-449.29982481,0.00019989,2]
[408450142,1773653440580,-449.29982481,0.0001999,2]
[408450143,1773653440590,-449.29982481,0.0001999,2]
[408450144,1773653440600,-151.0,0.00019997,2]
[408450145,1773653440609,-500.0,0.00019998,2]
[408450146,1773653440619,-1000.0,0.00019999,2]
[408450147,1773653440628,-309.40321204,0.00019999,2]
[408450148,1773653440637,-690.01041515,0.00019999,2]
[408450149,1773653440646,-18035.8043619,0.00019999,2]
[408450150,1773653440655,-3460.6594704,0.00019999,2]
[408450151,1773653440664,-8459.2688847,0.00019999,2]
[408450152,1773653440674,-1151.278279,0.00019999,5]
[408450153,1773653440683,-1151.278279,0.00019999,5]
[408450154,1773653440692,-674.79,0.00019999,2]
[408450155,1773653440701,-674.79,0.00019999,2]
[408450156,1773653440711,-674.79,0.00019999,2]
[408450157,1773653440720,-674.79,0.00019999,2]
[408450158,1773653440729,-674.79,0.00019999,2]
[408450159,1773653440738,-674.79,0.00019999,2]
[408450160,1773653440747,-674.79,0.00019999,2]
[408450161,1773653440756,-674.79,0.00019999,2]
[408450162,1773653440766,-674.79,0.00019999,2]
[408450164,1773653440775,-674.79,0.00019999,2]
[408450166,1773653440785,-674.79,0.00019999,2]
[408450168,1773653440795,-674.79,0.00019999,2]
[408450170,1773653440805,-674.79,0.00019999,2]
[408450172,1773653440814,-674.79,0.00019999,2]
[408450174,1773653440823,-674.79,0.00019999,2]
[408450176,1773653440832,-674.79,0.00019999,2]
[408450178,1773653440841,-674.79,0.00019999,2]
[408450180,1773653440850,-674.79,0.00019999,2]
[408450182,1773653440859,-674.79,0.00019999,2]
[408450184,1773653440869,-675.02193391,0.00019999,2]
[408450186,1773653440878,-3074.7661097,0.00019999,2]
[408450188,1773653440887,-1192.1495856,0.00019999,2]
[408450189,1773653440896,-200.0,0.00019999,2]
[408450190,1773653440906,-443.07294302,0.00019999,2]
[408450191,1773653440919,-350.67723425,0.00019999,2]
[408450192,1773653440928,-4063.5395389,0.00019999,2]
[408450193,1773653440937,-882.9550557,0.00019999,2]
[408450194,1773653440946,-526.51350935,0.00019999,2]
[408450195,1773653440957,-3000.0,0.00019999,2]
[408450196,1773653440966,-500.0,0.00019999,2]
[408450197,1773653440976,-500.0,0.00019999,2]
[408450198,1773653440985,-500.0,0.00019999,2]
[408450199,1773653440995,-500.0,0.00019999,2]
[408450200,1773653441005,-500.0,0.00019999,2]
[408450201,1773653441014,-154.18560746,0.00019999,2]
[408450202,1773653441023,-419.0,0.0002,2]
[408450203,1773653441033,-3525146.63301079,0.0002,2]
[408450204,1773653441042,-405519.52856388,0.0002,2]
[408450205,1773653441052,-552567.74439112,0.0002,2]
[408450206,1773653441064,-3780.01318778,0.0002,2]
[408450207,1773653441079,-37808.36663339,0.0002,2]
[408450208,1773653441091,-2205.71495633,0.0002,2]
[408450209,1773653441122,-807.438462,0.0002,2]
[408450213,1773653443193,-28366.64165831,0.0002,2]
[408450215,1773653446092,-21670.02782176,0.0002,2]
[408450216,1773653446462,-5756.54378,0.0002,2]
[408450217,1773653446474,-6006.9993,0.0002,2]
[408450218,1773653446485,-7315.5,0.0002,2]
[408450219,1773653449955,210.11,9.877e-05,2]
[408450220,1773653450176,210.11,0.00010397,2]
[408450221,1773653450387,210.11,0.00010917,2]
[408450222,1773653450611,210.11,0.00011437,2]
[408450223,1773653450796,210.11,0.00011957,2]
[408450224,1773653450998,198.64195383,0.00012477,2]
[408450225,1773653475579,899.31,0.000205,120]
[408450233,1773653846501,12555.72257726,0.000222,14]
[408450240,1773654399170,-11.46804617,0.00012477,2]
[408450241,1773654399192,-174.01463991,0.00012736,2]
[408450242,1773654454092,-31.62983547,0.00012736,2]
[408450243,1773654454113,-210.11,0.00012996,2]
[408450244,1773654454135,-210.11,0.00013516,2]
[408450245,1773654454156,-15.75130681,0.00013537,2]
[408450246,1773654548108,-1400.21869319,0.00013537,2]
[408450247,1773654548130,-1186.13440798,0.00013706,2]
[408450248,1773654548151,-300.0,0.00013723,2]
[408450249,1773654548178,-300.0,0.00013724,2]
[408450250,1773654548205,-306.44948031,0.00013724,2]
[408450251,1773654548230,-250.0,0.00013724,2]
[408450252,1773654548250,-346.68641921,0.00013724,2]
[408450253,1773654548272,-600.0,0.0001401,2]
[408450254,1773654548295,-210.11,0.00014036,2]
[408450255,1773654548319,-210.11,0.00014556,2]
[408450256,1773654548340,-600.0,0.0001489,2]
[408450257,1773654548364,-210.11,0.00015076,2]
[408450258,1773654548385,-500.0,0.000154,2]
[408450259,1773654548405,-210.11,0.00015596,2]
[408450260,1773654548434,-166.66,0.00015639,2]
[408450261,1773654548457,-1200.0,0.00015932,2]
[408450262,1773654548477,-199.13,0.00015954,2]
[408450263,1773654548498,-166.66,0.00015968,2]
[408450264,1773654548518,-789.0,0.00016,2]
[408450265,1773654548538,-500.0,0.0001604,2]
[408450266,1773654548560,-210.11,0.00016116,2]
[408450267,1773654548581,-1498.69,0.00016207,2]
[408450268,1773654548603,-166.66,0.00016298,2]
[408450269,1773654548632,-200.0,0.00016316,2]
[408450270,1773654548654,-151.0,0.00016316,2]
[408450271,1773654548680,-151.0,0.00016316,2]
[408450272,1773654548702,-151.0,0.00016316,2]
[408450273,1773654548724,-151.0,0.00016316,2]
[408450274,1773654548747,-151.0,0.00016316,2]
[408450275,1773654548768,-151.0,0.00016316,2]
[408450276,1773654548791,-154.71385397,0.00016316,2]
[408450277,1773654548812,-151.0,0.00016316,2]
[408450278,1773654548835,-151.0,0.00016316,2]
[408450279,1773654548858,-151.0,0.00016316,2]
[408450280,1773654548880,-154.4363437,0.00016316,2]
[408450281,1773654548905,-4653.85,0.00016326,2]
[408450282,1773654548927,-200.0,0.00016347,2]
[408450283,1773654548949,-2000.0,0.00016427,2]
[408450284,1773654548970,-500.0,0.00016431,2]
[408450285,1773654548990,-161.04,0.00016558,2]
[408450286,1773654549009,-1230.44822395,0.00016612,2]
[408450292,1773654632040,-200.0,0.000163,2]
[408450293,1773654632051,-195.0,0.00016456,2]
[408450294,1773654632061,-448.33708973,0.00016456,2]
[408450295,1773654632073,-2051.66291027,0.00016456,2]
[408450296,1773654632082,-2500.0,0.00016608,2]
[408450297,1773654632092,-193.17502185,0.00016608,2]
[408450298,1773654632102,-268.24177605,0.00016612,2]
[408450299,1773654632111,-166.66,0.00016627,2]
[408450300,1773654632121,-210.11,0.00016635,2]
[408450301,1773654632131,-5533.0,0.000168,2]
[408450302,1773654632140,-200.0,0.00016864,2]
[408450303,1773654632150,-786.64,0.00016874,2]
[408450304,1773654632160,-1200.0,0.0001692,2]
[408450305,1773654632169,-1000.0,0.00016921,2]
[408450306,1773654632179,-166.66,0.00016956,2]
[408450307,1773654632188,-945.0,0.00017,2]
[408450308,1773654632197,-5533.0,0.00017,3]
[408450309,1773654632207,-1498.69,0.00017017,2]
[408450310,1773654632217,-210.11,0.00017155,2]
[408450311,1773654632226,-2000.0,0.00017188,2]
[408450312,1773654632236,-16687.07,0.00017255,2]
[408450313,1773654632246,-166.66,0.00017285,2]
[408450314,1773654632256,-5533.0,0.000173,5]
[408450316,1773654632265,-1498.69,0.00017422,2]
[408450317,1773654632274,-166.7,0.0001751,2]
[408450318,1773654632284,-2987.0,0.00017564,2]
[408450319,1773654632293,-210.11,0.00017675,2]
[408450320,1773654632305,-9999.99,0.00017728,2]
[408450321,1773654632319,-430.68,0.00017728,2]
[408450322,1773654632328,-4999.99,0.00017728,2]
[408450323,1773654632337,-9999.99,0.00017728,2]
[408450324,1773654632347,-150.99,0.00017728,2]
[408450325,1773654632357,-9999.99,0.00017728,2]
[408450326,1773654632367,-999.99,0.00017728,2]
[408450327,1773654632376,-517.08,0.00017728,2]
[408450328,1773654632388,-5344.92,0.00017728,2]
[408450329,1773654632399,-9999.99,0.00017728,2]
[408450330,1773654632408,-150.99,0.00017728,2]
[408450331,1773654632418,-343.95656253,0.00017808,2]
[408450332,1773654632427,-1498.69,0.00017827,2]
[408450333,1773654632436,-195.0,0.0001793,2]
[408450334,1773654632446,-2500.0,0.0001793,2]
[408450335,1773654632455,-500.0,0.000181,2]
[408450336,1773654632465,-500.0,0.000181,2]
[408450337,1773654632475,-253.13,0.00018122,2]
[408450338,1773654632485,-500.14653107,0.00018192,2]
[408450339,1773654632494,-500.0,0.00018192,2]
[408450340,1773654632503,-500.0,0.00018192,2]
[408450341,1773654632513,-500.0,0.00018192,2]
[408450342,1773654632522,-500.0,0.00018192,2]
[408450343,1773654632532,-210.11,0.00018195,2]
[408450344,1773654632542,-375.64495104,0.0001821,2]
[408450345,1773654632551,-19523.0,0.00018321,2]
[408450346,1773654632561,-500.0,0.00018321,2]
[408450347,1773654632571,-2000.0,0.00018481,2]
[408450348,1773654632581,-622.79,0.00018489,2]
[408450349,1773654632590,-546.0,0.000185,2]
[408450350,1773654632600,-5279.00929041,0.00018639,2]
[408450351,1773654632609,-501.39212081,0.00018648,2]
[408450352,1773654632619,-210.11,0.00018715,2]
[408450353,1773654632628,-1000.0,0.0001874,2]
[408450354,1773654632637,-506.42760695,0.0001874,2]
[408450355,1773654632646,-1000.0,0.0001874,2]